fUST/lending_fUST_20250520
["ID","MTS","AMOUNT","RATE_DAILY","PERIOD"]
[361727530,1747732236016,-436.16,0.00016712,2]
[361727531,1747732236025,-430.0,0.00016712,2]
[361727532,1747732236035,-430.0,0.00016712,2]
[361727533,1747732236044,-430.0,0.00016712,2]
[361727534,1747732236054,-430.0,0.00016712,2]
[361727535,1747732236063,-430.0,0.00016712,2]
[361727536,1747732236073,-430.0,0.00016712,2]
[361727537,1747732236082,-430.0,0.00016712,2]
[361727538,1747732236091,-430.0,0.00016712,2]
[361727539,1747732236103,-430.0,0.00016712,2]
[361727540,1747732236112,-430.0,0.00016712,2]
[361727541,1747732236122,-430.0,0.00016712,2]
[361727542,1747732236131,-280.84248637,0.00016712,2]
[361727543,1747732236140,-430.0,0.00016712,2]
[361727544,1747732236150,-430.0,0.00016712,2]
[361727545,1747732236159,-724.99,0.00016712,2]
[361727546,1747732236168,-430.0,0.00016712,2]
[361727547,1747732236178,-430.0,0.00016712,2]
[361727548,1747732236187,-449.58,0.00016712,2]
[361727549,1747732236197,-430.0,0.00016712,2]
[361727550,1747732236208,-420.0,0.00016712,2]
[361727551,1747732236217,-430.0,0.00016712,2]
[361727552,1747732236227,-430.0,0.00016712,2]
[361727553,1747732236236,-906.69,0.00016712,2]
[361727554,1747732236245,-487.97,0.00016712,2]
[361727555,1747732236255,-430.0,0.00016712,2]
[361727556,1747732236266,-1280.98,0.00016712,2]
[361727557,1747732236276,-3723.85,0.00016712,2]
[361727558,1747732236286,-430.0,0.00016712,2]
[361727559,1747732236295,-470.0,0.00016712,2]
[361727560,1747732236304,-2161.24,0.00016712,2]
[361727561,1747732236314,-906.44,0.00016712,2]
[361727562,1747732236323,-430.0,0.00016712,2]
[361727563,1747732236332,-616.2,0.00016712,2]
[361727564,1747732236342,-430.0,0.00016712,2]
[361727565,1747732236351,-355.61262646,0.00016712,2]
[361727566,1747732236360,-430.0,0.00016712,2]
[361727567,1747732236370,-430.0,0.00016712,2]
[361727568,1747732236379,-470.0,0.00016712,2]
[361727569,1747732236388,-430.0,0.00016712,2]
[361727570,1747732236397,-430.0,0.00016712,2]
[361727571,1747732236407,-430.0,0.00016712,2]
[361727572,1747732236416,-902.08,0.00016712,2]
[361727573,1747732236426,-804.59,0.00016712,2]
[361727574,1747732236437,-2103.57,0.00016712,2]
[361727575,1747732236446,-606.06,0.00016712,2]
[361727576,1747732236456,-665.58,0.00016712,2]
[361727577,1747732236465,-430.0,0.00016712,2]
[361727578,1747732236474,-1422.69,0.00016712,2]
[361727579,1747732236483,-3134.9,0.00016712,2]
[361727580,1747732236493,-430.0,0.00016712,2]
[361727581,1747732236503,-430.0,0.00016712,2]
[361727582,1747732236512,-430.0,0.00016712,2]
[361727583,1747732236523,-430.0,0.00016712,2]
[361727584,1747732236532,-695.84,0.00016712,2]
[361727585,1747732236542,-430.0,0.00016712,2]
[361727586,1747732236551,-430.0,0.00016712,2]
[361727587,1747732236561,-1576.78,0.00016712,2]
[361727588,1747732236570,-1114.48,0.00016712,2]
[361727589,1747732236580,-430.0,0.00016712,2]
[361727590,1747732236589,-1826.96,0.00016712,2]
[361727591,1747732236599,-430.0,0.00016712,2]
[361727592,1747732236608,-430.0,0.00016712,2]
[361727593,1747732236618,-430.0,0.00016712,2]
[361727594,1747732236628,-446.51,0.00016712,2]
[361727595,1747732236638,-430.0,0.00016712,2]
[361727596,1747732236648,-430.0,0.00016712,2]
[361727597,1747732236658,-430.0,0.00016712,2]
[361727598,1747732236667,-430.0,0.00016712,2]
[361727599,1747732236677,-430.0,0.00016712,2]
[361727600,1747732236688,-653.99,0.00016712,2]
[361727601,1747732236699,-430.0,0.00016712,2]
[361727602,1747732236709,-865.43,0.00016712,2]
[361727603,1747732236718,-430.0,0.00016712,2]
[361727604,1747732236727,-721.82,0.00016712,2]
[361727605,1747732236738,-430.0,0.00016712,2]
[361727606,1747732236747,-651.79,0.00016712,2]
[361727607,1747732236756,-1593.43,0.00016712,2]
[361727608,1747732236767,-1932.84,0.00016712,2]
[361727609,1747732236777,-1318.2,0.00016712,2]
[361727610,1747732236786,-497.17,0.00016712,2]
[361727611,1747732236795,-579.02,0.00016712,2]
[361727612,1747732236806,-599.0,0.00016712,2]
[361727613,1747732236816,-430.0,0.00016712,2]
[361727614,1747732236826,-4926.24,0.00016712,2]
[361727615,1747732236835,-482.08,0.00016712,2]
[361727616,1747732236845,-616.01,0.00016712,2]
[361727617,1747732236854,-1064.54,0.00016712,2]
[361727618,1747732236865,-1254.14,0.00016712,2]
[361727619,1747732236876,-1085.46,0.00016712,2]
[361727620,1747732236885,-750.98,0.00016712,2]
[361727621,1747732236894,-430.0,0.00016712,2]
[361727622,1747732236904,-468.79,0.00016712,2]
[361727623,1747732236913,-430.0,0.00016712,2]
[361727624,1747732236923,-2031.43,0.00016712,2]
[361727625,1747732236933,-430.0,0.00016712,2]
[361727626,1747732236942,-595.48,0.00016712,2]
[361727627,1747732236951,-151.0,0.00016712,2]
[361727628,1747732236961,-451.05,0.00016712,2]
[361727629,1747732236971,-420.0,0.00016712,2]
[361727630,1747732236980,-430.0,0.00016712,2]
[361727631,1747732236990,-904.59,0.00016712,2]
[361727632,1747732236999,-430.0,0.00016712,2]
[361727633,1747732237009,-5371.73,0.00016712,2]
[361727634,1747732237019,-1028.43,0.00016712,2]
[361727635,1747732237028,-430.0,0.00016712,2]
[361727636,1747732237038,-823.01,0.00016712,2]
[361727637,1747732237048,-446.17,0.00016712,2]
[361727638,1747732237057,-430.0,0.00016712,2]
[361727639,1747732237067,-800.97,0.00016712,2]
[361727640,1747732237076,-430.0,0.00016712,2]
[361727641,1747732237086,-1804.23,0.00016712,2]
[361727642,1747732237096,-459.24,0.00016712,2]
[361727643,1747732237105,-430.0,0.00016712,2]
[361727644,1747732237115,-430.0,0.00016712,2]
[361727645,1747732237124,-707.46,0.00016712,2]
[361727646,1747732237134,-430.0,0.00016712,2]
[361727647,1747732237143,-238.932586,0.00016721,2]
[361727648,1747732237153,-238.932586,0.00016721,2]
[361727649,1747732237162,-151.0,0.00016745,2]
[361727650,1747732237172,-2496.4480296,0.00016745,2]
[361727651,1747732237181,-151.0,0.0001676,2]
[361727652,1747732237191,-404.0,0.00016787,2]
[361727653,1747732237200,-151.0,0.0001683,2]
[361727654,1747732237211,-547.0,0.00016831,2]
[361727655,1747732237223,-2235.0,0.00016831,2]
[361727656,1747732237369,-707.0,0.00016831,2]
[361727657,1747732237382,-160.0,0.00016864,2]
[361727658,1747732237396,-894.64583333,0.00016864,2]
[361727659,1747732237407,-212.38718278,0.00016864,2]
[361727660,1747732237416,-422.65292303,0.00016864,2]
[361727661,1747732237426,-160.0,0.00016864,2]
[361727663,1747732237436,-12640.66806714,0.00016864,2]
[361727665,1747732237445,-160.0,0.00016864,2]
[361727666,1747732237456,-160.0,0.00016864,2]
[361727667,1747732237466,-160.0,0.00016864,2]
[361727668,1747732237475,-160.0,0.00016865,2]
[361727669,1747732237485,-2496.4480296,0.00016886,2]
[361727670,1747732237494,-238.932586,0.000169,2]
[361727671,1747732237504,-238.932586,0.000169,2]
[361727672,1747732237513,-308.126112,0.000169,2]
[361727673,1747732237523,-308.126112,0.000169,2]
[361727674,1747732237533,-151.0,0.000169,2]
[361727675,1747732237543,-13648.3476378,0.000169,2]
[361727676,1747732237552,-151.0,0.00016967,2]
[361727678,1747732237561,-5000.0,0.00016976,2]
[361727679,1747732237570,-238.932586,0.00016986,2]
[361727681,1747732237580,-238.932583,0.00016986,2]
[361727682,1747732237589,-430.0,0.00016986,2]
[361727683,1747732237599,-430.0,0.00016986,2]
[361727684,1747732237609,-430.0,0.00016986,2]
[361727686,1747732237618,-151.0,0.00016986,2]
[361727687,1747732237627,-151.0,0.00016986,2]
[361727688,1747732237636,-430.0,0.00016986,2]
[361727689,1747732237646,-151.0,0.00016986,2]
[361727690,1747732237655,-430.0,0.00016986,2]
[361727691,1747732237668,-151.0,0.00016986,2]
[361727692,1747732237678,-151.0,0.00016986,2]
[361727693,1747732237695,-151.0,0.00016986,2]
[361727694,1747732237705,-151.0,0.00016986,2]
[361727695,1747732237715,-430.0,0.00016986,2]
[361727697,1747732237724,-430.0,0.00016986,2]
[361727699,1747732237734,-430.0,0.00016986,2]
[361727700,1747732237743,-430.0,0.00016986,2]
[361727702,1747732237752,-430.0,0.00016986,2]
[361727703,1747732237762,-430.0,0.00016986,2]
[361727705,1747732237773,-430.0,0.00016986,2]
[361727706,1747732237782,-430.0,0.00016986,2]
[361727708,1747732237792,-759.03,0.00016986,2]
[361727709,1747732237801,-723.9,0.00016986,2]
[361727710,1747732237811,-430.0,0.00016986,2]
[361727711,1747732237821,-430.0,0.00016986,2]
[361727713,1747732237831,-151.0,0.00016986,2]
[361727714,1747732237840,-430.0,0.00016986,2]
[361727715,1747732237850,-430.0,0.00016986,2]
[361727716,1747732237860,-430.0,0.00016986,2]
[361727717,1747732237871,-430.0,0.00016986,2]
[361727718,1747732237881,-430.0,0.00016986,2]
[361727719,1747732237893,-430.0,0.00016986,2]
[361727720,1747732237903,-430.0,0.00016986,2]
[361727721,1747732237912,-458.01379385,0.00016986,2]
[361727722,1747732237921,-430.0,0.00016986,2]
[361727723,1747732237931,-513.71,0.00016986,2]
[361727724,1747732237943,-151.0,0.00016986,2]
[361727725,1747732237952,-151.0,0.00016986,2]
[361727726,1747732237962,-430.0,0.00016986,2]
[361727727,1747732237972,-430.0,0.00016986,2]
[361727728,1747732237982,-430.0,0.00016986,2]
[361727729,1747732237992,-430.0,0.00016986,2]
[361727730,1747732238002,-430.0,0.00016986,2]
[361727731,1747732238013,-151.0,0.00016986,2]
[361727732,1747732238022,-430.0,0.00016986,2]
[361727733,1747732238033,-637.41,0.00016986,2]
[361727734,1747732238043,-430.0,0.00016986,2]
[361727735,1747732238053,-430.0,0.00016986,2]
[361727736,1747732238062,-430.0,0.00016986,2]
[361727737,1747732238073,-151.0,0.00016986,2]
[361727738,1747732238082,-430.0,0.00016986,2]
[361727739,1747732238092,-430.0,0.00016986,2]
[361727740,1747732238103,-436.16,0.00016986,2]
[361727741,1747732238115,-430.0,0.00016986,2]
[361727742,1747732238124,-430.0,0.00016986,2]
[361727743,1747732238134,-430.0,0.00016986,2]
[361727744,1747732238145,-430.0,0.00016986,2]
[361727745,1747732238156,-430.0,0.00016986,2]
[361727746,1747732238166,-430.0,0.00016986,2]
[361727747,1747732238176,-490.0,0.00016986,2]
[361727748,1747732238186,-430.0,0.00016986,2]
[361727749,1747732238196,-430.0,0.00016986,2]
[361727750,1747732238210,-430.0,0.00016986,2]
[361727751,1747732238221,-430.0,0.00016986,2]
[361727752,1747732238231,-430.0,0.00016986,2]
[361727753,1747732238241,-430.0,0.00016986,2]
[361727754,1747732238251,-724.99,0.00016986,2]
[361727755,1747732238261,-430.0,0.00016986,2]
[361727756,1747732238271,-430.0,0.00016986,2]
[361727757,1747732238280,-430.0,0.00016986,2]
[361727758,1747732238290,-174.92,0.00016986,2]
[361727759,1747732238300,-430.0,0.00016986,2]
[361727760,1747732238310,-906.69,0.00016986,2]
[361727761,1747732238319,-168.03591371,0.00016986,2]
[361727762,1747732238329,-1280.98,0.00016986,2]
[361727763,1747732238339,-3723.85,0.00016986,2]
[361727764,1747732238349,-430.0,0.00016986,2]
[361727765,1747732238359,-2161.24,0.00016986,2]
[361727766,1747732238368,-906.44,0.00016986,2]
[361727767,1747732238378,-430.0,0.00016986,2]
[361727768,1747732238387,-616.2,0.00016986,2]
[361727769,1747732238397,-430.0,0.00016986,2]
[361727770,1747732238408,-430.0,0.00016986,2]
[361727771,1747732238418,-430.0,0.00016986,2]
[361727772,1747732238427,-430.0,0.00016986,2]
[361727773,1747732238437,-430.0,0.00016986,2]
[361727774,1747732238446,-430.0,0.00016986,2]
[361727775,1747732238456,-151.0,0.00016986,2]
[361727776,1747732238466,-902.08,0.00016986,2]
[361727777,1747732238475,-804.59,0.00016986,2]
[361727778,1747732238485,-2103.57,0.00016986,2]
[361727779,1747732238494,-606.06,0.00016986,2]
[361727780,1747732238505,-665.58,0.00016986,2]
[361727781,1747732238515,-430.0,0.00016986,2]
[361727782,1747732238526,-1422.69,0.00016986,2]
[361727783,1747732238535,-3134.9,0.00016986,2]
[361727784,1747732238545,-430.0,0.00016986,2]
[361727785,1747732238556,-430.0,0.00016986,2]
[361727786,1747732238566,-430.0,0.00016986,2]
[361727787,1747732238576,-430.0,0.00016986,2]
[361727788,1747732238585,-695.84,0.00016986,2]
[361727789,1747732238596,-430.0,0.00016986,2]
[361727790,1747732238605,-151.0,0.00016986,2]
[361727791,1747732238615,-430.0,0.00016986,2]
[361727792,1747732238624,-1576.78,0.00016986,2]
[361727793,1747732238633,-1114.48,0.00016986,2]
[361727794,1747732238643,-430.0,0.00016986,2]
[361727795,1747732238652,-1826.96,0.00016986,2]
[361727796,1747732238662,-430.0,0.00016986,2]
[361727797,1747732238672,-430.0,0.00016986,2]
[361727798,1747732238681,-430.0,0.00016986,2]
[361727799,1747732238695,-446.51,0.00016986,2]
[361727800,1747732238704,-430.0,0.00016986,2]
[361727801,1747732238714,-430.0,0.00016986,2]
[361727802,1747732238723,-430.0,0.00016986,2]
[361727803,1747732238734,-430.0,0.00016986,2]
[361727804,1747732238744,-430.0,0.00016986,2]
[361727805,1747732238753,-653.99,0.00016986,2]
[361727806,1747732238764,-430.0,0.00016986,2]
[361727807,1747732238774,-865.43,0.00016986,2]
[361727808,1747732238783,-430.0,0.00016986,2]
[361727809,1747732238793,-721.82,0.00016986,2]
[361727810,1747732238802,-430.0,0.00016986,2]
[361727811,1747732238812,-651.79,0.00016986,2]
[361727812,1747732238821,-1593.43,0.00016986,2]
[361727813,1747732238830,-1932.84,0.00016986,2]
[361727814,1747732238839,-1318.2,0.00016986,2]
[361727815,1747732238849,-497.17,0.00016986,2]
[361727816,1747732238858,-579.02,0.00016986,2]
[361727817,1747732238867,-599.0,0.00016986,2]
[361727818,1747732238878,-430.0,0.00016986,2]
[361727819,1747732238887,-4926.24,0.00016986,2]
[361727820,1747732238897,-482.08,0.00016986,2]
[361727821,1747732238906,-616.01,0.00016986,2]
[361727822,1747732238915,-1064.54,0.00016986,2]
[361727823,1747732238925,-1254.14,0.00016986,2]
[361727824,1747732238935,-1085.46,0.00016986,2]
[361727825,1747732238944,-750.98,0.00016986,2]
[361727826,1747732238954,-430.0,0.00016986,2]
[361727827,1747732238963,-468.79,0.00016986,2]
[361727828,1747732238973,-430.0,0.00016986,2]
[361727829,1747732238982,-2031.43,0.00016986,2]
[361727830,1747732238991,-430.0,0.00016986,2]
[361727831,1747732239001,-595.48,0.00016986,2]
[361727832,1747732239010,-151.0,0.00016986,2]
[361727833,1747732239020,-451.05,0.00016986,2]
[361727834,1747732239029,-430.0,0.00016986,2]
[361727835,1747732239039,-430.0,0.00016986,2]
[361727836,1747732239048,-5371.73,0.00016986,2]
[361727837,1747732239057,-1028.43,0.00016986,2]
[361727838,1747732239067,-904.59,0.00016986,2]
[361727839,1747732239077,-430.0,0.00016986,2]
[361727840,1747732239087,-823.01,0.00016986,2]
[361727841,1747732239096,-446.17,0.00016986,2]
[361727842,1747732239105,-430.0,0.00016986,2]
[361727843,1747732239115,-800.97,0.00016986,2]
[361727844,1747732239124,-430.0,0.00016986,2]
[361727845,1747732239135,-1804.23,0.00016986,2]
[361727846,1747732239144,-459.24,0.00016986,2]
[361727847,1747732239154,-430.0,0.00016986,2]
[361727848,1747732239163,-430.0,0.00016986,2]
[361727849,1747732239173,-707.46,0.00016986,2]
[361727850,1747732239182,-430.0,0.00016986,2]
[361727851,1747732239192,-151.0,0.00017,2]
[361727852,1747732239201,-500.0,0.00017036,2]
[361727853,1747732239212,-500.0,0.00017061,2]
[361727854,1747732239222,-500.0,0.00017074,2]
[361727855,1747732239231,-500.0,0.00017074,2]
[361727856,1747732239241,-500.0,0.00017074,2]
[361727857,1747732239250,-504.13823928,0.00017074,2]
[361727858,1747732239260,-502.53694732,0.00017074,2]
[361727859,1747732239269,-500.0,0.00017074,2]
[361727860,1747732239279,-500.0,0.00017074,2]
[361727861,1747732239288,-151.0,0.00017176,2]
[361727862,1747732239298,-500.0,0.00017179,2]
[361727863,1747732239307,-1031.70764834,0.00017181,2]
[361727864,1747732239316,-308.126112,0.00017181,2]
[361727865,1747732239325,-308.126112,0.00017181,2]
[361727866,1747732239334,-151.0,0.000172,2]
[361727867,1747732239344,-13648.34763761,0.0001721,2]
[361727868,1747732239353,-501.91420005,0.00017211,2]
[361727869,1747732239362,-500.0,0.00017211,2]
[361727870,1747732239371,-500.0,0.00017211,2]
[361727871,1747732239381,-500.81146006,0.00017211,2]
[361727872,1747732239391,-579.36279133,0.00017211,2]
[361727873,1747732239400,-500.0,0.00017214,2]
[361727874,1747732239409,-508.34307691,0.00017214,2]
[361727875,1747732239419,-430.0,0.0001726,2]
[361727876,1747732239428,-151.0,0.0001726,2]
[361727877,1747732239437,-430.0,0.0001726,2]
[361727878,1747732239446,-430.0,0.0001726,2]
[361727879,1747732239455,-430.0,0.0001726,2]
[361727880,1747732239465,-430.0,0.0001726,2]
[361727881,1747732239474,-430.0,0.0001726,2]
[361727882,1747732239484,-430.0,0.0001726,2]
[361727883,1747732239493,-430.0,0.0001726,2]
[361727884,1747732239503,-430.0,0.0001726,2]
[361727885,1747732239512,-430.0,0.0001726,2]
[361727886,1747732239521,-430.0,0.0001726,2]
[361727887,1747732239530,-430.0,0.0001726,2]
[361727889,1747732239540,-430.0,0.0001726,2]
[361727890,1747732239549,-759.03,0.0001726,2]
[361727891,1747732239558,-723.9,0.0001726,2]
[361727892,1747732239567,-430.0,0.0001726,2]
[361727893,1747732239577,-510.0,0.0001726,2]
[361727894,1747732239586,-151.0,0.0001726,2]
[361727895,1747732239595,-430.0,0.0001726,2]
[361727896,1747732239605,-430.0,0.0001726,2]
[361727897,1747732239615,-430.0,0.0001726,2]
[361727898,1747732239625,-575.79583869,0.0001726,2]
[361727899,1747732239635,-430.0,0.0001726,2]
[361727900,1747732239644,-430.0,0.0001726,2]
[361727901,1747732239654,-430.0,0.0001726,2]
[361727902,1747732239663,-430.0,0.0001726,2]
[361727903,1747732239673,-513.71,0.0001726,2]
[361727904,1747732239683,-430.0,0.0001726,2]
[361727905,1747732239697,-510.0,0.0001726,2]
[361727906,1747732239707,-430.0,0.0001726,2]
[361727908,1747732239717,-510.0,0.0001726,2]
[361727910,1747732239727,-430.0,0.0001726,2]
[361727912,1747732239736,-151.0,0.0001726,2]
[361727913,1747732239745,-520.32955663,0.0001726,2]
[361727914,1747732239755,-637.41,0.0001726,2]
[361727916,1747732239764,-430.0,0.0001726,2]
[361727917,1747732239774,-430.0,0.0001726,2]
[361727918,1747732239783,-430.0,0.0001726,2]
[361727919,1747732239793,-510.0,0.0001726,2]
[361727920,1747732239802,-430.0,0.0001726,2]
[361727921,1747732239811,-436.16,0.0001726,2]
[361727922,1747732239822,-510.0,0.0001726,2]
[361727923,1747732239831,-510.0,0.0001726,2]
[361727924,1747732239840,-510.0,0.0001726,2]
[361727925,1747732239849,-510.0,0.0001726,2]
[361727926,1747732239858,-430.0,0.0001726,2]
[361727927,1747732239868,-430.0,0.0001726,2]
[361727928,1747732239878,-510.0,0.0001726,2]
[361727929,1747732239887,-430.0,0.0001726,2]
[361727930,1747732239897,-510.0,0.0001726,2]
[361727931,1747732239908,-430.0,0.0001726,2]
[361727932,1747732239918,-430.0,0.0001726,2]
[361727933,1747732239927,-430.0,0.0001726,2]
[361727934,1747732239936,-724.99,0.0001726,2]
[361727935,1747732239946,-430.0,0.0001726,2]
[361727936,1747732239955,-430.0,0.0001726,2]
[361727937,1747732239965,-430.0,0.0001726,2]
[361727938,1747732239976,-430.0,0.0001726,2]
[361727939,1747732239986,-906.69,0.0001726,2]
[361727940,1747732239996,-1280.98,0.0001726,2]
[361727941,1747732240006,-3723.85,0.0001726,2]
[361727942,1747732240016,-533.53135826,0.0001726,2]
[361727943,1747732240025,-2161.24,0.0001726,2]
[361727945,1747732240035,-906.44,0.0001726,2]
[361727947,1747732240044,-430.0,0.0001726,2]
[361727948,1747732240054,-616.2,0.0001726,2]
[361727949,1747732240063,-430.0,0.0001726,2]
[361727950,1747732240072,-430.0,0.0001726,2]
[361727951,1747732240082,-430.0,0.0001726,2]
[361727952,1747732240091,-430.0,0.0001726,2]
[361727953,1747732240101,-430.0,0.0001726,2]
[361727954,1747732240110,-510.0,0.0001726,2]
[361727955,1747732240119,-291.470584,0.0001726,2]
[361727956,1747732240128,-902.08,0.0001726,2]
[361727957,1747732240141,-804.59,0.0001726,2]
[361727960,1747732240281,-2103.57,0.0001726,2]
[361727961,1747732240291,-606.06,0.0001726,2]
[361727962,1747732240301,-665.58,0.0001726,2]
[361727963,1747732240311,-430.0,0.0001726,2]
[361727964,1747732240321,-1422.69,0.0001726,2]
[361727965,1747732240331,-3134.9,0.0001726,2]
[361727966,1747732240340,-430.0,0.0001726,2]
[361727967,1747732240349,-430.0,0.0001726,2]
[361727968,1747732240367,-430.0,0.0001726,2]
[361727969,1747732240379,-430.0,0.0001726,2]
[361727970,1747732240389,-695.84,0.0001726,2]
[361727971,1747732240398,-430.0,0.0001726,2]
[361727972,1747732240407,-267.801164,0.0001726,2]
[361727973,1747732240418,-430.0,0.0001726,2]
[361727974,1747732240427,-1576.78,0.0001726,2]
[361727975,1747732240438,-1114.48,0.0001726,2]
[361727976,1747732240450,-430.0,0.0001726,2]
[361727977,1747732240459,-1826.96,0.0001726,2]
[361727978,1747732240469,-430.0,0.0001726,2]
[361727979,1747732240479,-430.0,0.0001726,2]
[361727980,1747732240489,-430.0,0.0001726,2]
[361727981,1747732240500,-446.51,0.0001726,2]
[361727982,1747732240509,-430.0,0.0001726,2]
[361727983,1747732240518,-557.07377124,0.0001726,2]
[361727984,1747732240527,-510.0,0.0001726,2]
[361727985,1747732240537,-430.0,0.0001726,2]
[361727986,1747732240547,-430.0,0.0001726,2]
[361727987,1747732240557,-653.99,0.0001726,2]
[361727988,1747732240568,-430.0,0.0001726,2]
[361727989,1747732240578,-865.43,0.0001726,2]
[361727990,1747732240588,-430.0,0.0001726,2]
[361727991,1747732240599,-721.82,0.0001726,2]
[361727992,1747732240608,-430.0,0.0001726,2]
[361727993,1747732240619,-651.79,0.0001726,2]
[361727994,1747732240629,-1593.43,0.0001726,2]
[361727995,1747732240639,-1932.84,0.0001726,2]
[361727996,1747732240648,-1318.2,0.0001726,2]
[361727997,1747732240657,-497.17,0.0001726,2]
[361727998,1747732240668,-579.02,0.0001726,2]
[361727999,1747732240677,-599.0,0.0001726,2]
[361728000,1747732240688,-430.0,0.0001726,2]
[361728001,1747732240698,-4926.24,0.0001726,2]
[361728002,1747732240707,-482.08,0.0001726,2]
[361728003,1747732240716,-616.01,0.0001726,2]
[361728004,1747732240728,-1064.54,0.0001726,2]
[361728005,1747732240738,-1254.14,0.0001726,2]
[361728006,1747732240748,-1085.46,0.0001726,2]
[361728007,1747732240759,-750.98,0.0001726,2]
[361728008,1747732240771,-430.0,0.0001726,2]
[361728009,1747732240784,-468.79,0.0001726,2]
[361728010,1747732240794,-430.0,0.0001726,2]
[361728011,1747732240804,-2031.43,0.0001726,2]
[361728012,1747732240814,-430.0,0.0001726,2]
[361728013,1747732240824,-595.48,0.0001726,2]
[361728014,1747732240834,-151.0,0.0001726,2]
[361728015,1747732240844,-451.05,0.0001726,2]
[361728016,1747732240854,-430.0,0.0001726,2]
[361728017,1747732240865,-430.0,0.0001726,2]
[361728018,1747732240875,-5371.73,0.0001726,2]
[361728019,1747732240884,-1028.43,0.0001726,2]
[361728020,1747732240894,-904.59,0.0001726,2]
[361728021,1747732240903,-430.0,0.0001726,2]
[361728022,1747732240915,-823.01,0.0001726,2]
[361728023,1747732240925,-446.17,0.0001726,2]
[361728024,1747732240936,-430.0,0.0001726,2]
[361728025,1747732240947,-800.97,0.0001726,2]
[361728026,1747732240956,-430.0,0.0001726,2]
[361728027,1747732240966,-1804.23,0.0001726,2]
[361728028,1747732240976,-459.24,0.0001726,2]
[361728029,1747732240986,-430.0,0.0001726,2]
[361728030,1747732240996,-430.0,0.0001726,2]
[361728031,1747732241005,-707.46,0.0001726,2]
[361728032,1747732241015,-430.0,0.0001726,2]
[361728033,1747732241024,-151.0,0.000174,2]
[361728034,1747732241034,-13648.34763761,0.00017521,2]
[361728035,1747732241043,-5000.0,0.00017524,2]
[361728036,1747732241053,-937.56303258,0.00017526,2]
[361728037,1747732241062,-430.0,0.00017534,2]
[361728038,1747732241072,-430.0,0.00017534,2]
[361728039,1747732241082,-430.0,0.00017534,2]
[361728040,1747732241093,-151.0,0.00017534,2]
[361728041,1747732241102,-151.0,0.00017534,2]
[361728042,1747732241112,-430.0,0.00017534,2]
[361728043,1747732241121,-151.0,0.00017534,2]
[361728044,1747732241131,-430.0,0.00017534,2]
[361728045,1747732241141,-151.0,0.00017534,2]
[361728046,1747732241152,-151.0,0.00017534,2]
[361728047,1747732241161,-151.0,0.00017534,2]
[361728048,1747732241171,-430.0,0.00017534,2]
[361728049,1747732241181,-510.0,0.00017534,2]